bitfinex-derivatives/quotes_SOLF0:USTF0_20251222
["timestamp","ask_amount","ask_price","bid_price","bid_amount"]
[1766432157000,0.05525482,125.02,124.97,0.05477871]
[1766432157296,0.05525482,125.02,124.97,7.25917871]
[1766432158001,2.51451917,125.02,124.97,7.25917871]
[1766432158199,2.51451917,125.02,124.97,0.05477871]
[1766432158898,2.45926435,125.0,124.97,0.05477871]
[1766432159805,0.05525482,125.02,124.97,0.05477871]
[1766432160112,2.45926435,125.0,124.97,0.05477871]
[1766432160903,2.51451917,125.02,124.97,0.05477871]
[1766432161105,2.51451917,125.02,124.97,6.30477871]
[1766432161306,2.51451917,125.02,124.97,0.05477871]
[1766432164299,2.45926435,125.0,124.97,0.05477871]
[1766432164499,2.45926435,125.0,124.94,7.2059]
[1766432164903,2.45926435,125.0,124.91,17.04053398]
[1766432164904,2.45926435,124.98,124.91,6.25]
[1766432165606,0.05224143,124.96,124.93,0.05347922]
[1766432166405,0.00224143,124.96,124.93,6.85347922]
[1766432166602,0.00224143,124.96,124.94,7.2062]
[1766432167897,0.00224143,124.96,124.93,6.85347922]
[1766432167898,8.82150578,124.96,124.89,6.8]
[1766432168104,62.0,124.95,124.89,6.8]
[1766432168310,94.48,124.98,124.93,7.2069]
[1766432168609,2.45926435,125.0,124.93,6.8]
[1766432168906,0.05975311,124.98,124.96,7.205]
[1766432169107,9.88926435,125.02,124.96,7.205]
[1766432169297,62.0,125.01,124.96,7.205]
[1766432169911,94.48,125.03,124.96,6.8]
[1766432170210,0.05987318,125.01,124.98,0.05757133]
[1766432171808,62.0,125.0,124.98,0.05757133]
[1766432172131,0.05987318,125.01,124.98,0.05757133]
[1766432172608,2.45926435,125.04,124.98,0.05757133]
[1766432172810,2.45926435,125.04,124.98,6.85757133]
[1766432173011,62.0,125.03,124.98,6.85757133]
[1766432173215,62.0,125.03,124.98,14.06147133]
[1766432173417,62.0,125.03,124.98,7.26147133]
[1766432173605,0.06056129,125.02,124.98,7.26147133]
[1766432175819,0.06056129,125.02,124.99,7.2032]
[1766432176317,0.00056129,125.02,124.98,6.85757133]
[1766432176524,0.00056129,125.02,125.0,7.2028]
[1766432176820,7.43,125.08,125.01,94.52]
[1766432177022,11.27115935,125.11,125.02,8.7916]
[1766432177317,7.43,125.11,125.04,1.59]
[1766432177516,7.43,125.13,125.05,96.11]
[1766432177726,0.05060524,125.1,125.08,0.05391286]
[1766432179017,7.48060524,125.1,125.02,2.08]
[1766432179223,7.43,125.1,125.02,2.08]
[1766432179818,62.0,125.09,125.02,96.58]
[1766432180206,0.05402669,125.07,125.04,0.054369]
[1766432180715,0.00402669,125.07,125.04,0.054369]
[1766432182328,7.43402669,125.07,124.97,114.367]
[1766432182619,7.43,125.07,124.98,96.8]
[1766432183123,7.43,125.07,125.0,7.2026]
[1766432183317,0.0608012,125.05,125.02,0.05153743]
[1766432185127,7.4908012,125.05,125.02,0.00153743]
[1766432185333,7.4908012,125.05,124.97,2.59]
[1766432185629,7.43,125.05,124.97,97.07]
[1766432186425,0.06117046,125.02,125.0,0.00180458]
[1766432186628,7.43,125.03,124.95,94.48]
[1766432186929,62.0,125.01,124.95,94.48]
[1766432187525,0.05576781,124.99,124.97,0.05183263]
[1766432187819,62.0,125.01,124.97,0.05183263]
[1766432188210,62.0,125.01,124.97,7.25623263]
[1766432188830,0.05966793,125.0,124.97,7.25623263]
[1766432191932,0.05966793,125.0,124.97,101.75623263]
[1766432194641,7.43,125.04,124.98,7.2038]
[1766432195731,0.05812974,125.02,125.0,0.05917852]
[1766432196730,8.68,125.07,124.98,3.93]
[1766432197030,8.68,125.07,124.99,3.95]
[1766432197333,8.68,125.07,125.01,7.202]
[1766432197525,8.68,125.07,125.03,0.05065898]
[1766432197730,0.05043851,125.05,125.03,0.05065898]
[1766432198126,0.00043851,125.05,125.03,7.25175898]
[1766432199236,8.68,125.1,125.03,7.25175898]
[1766432199237,8.68,125.1,125.04,7.2003]
[1766432199625,8.68,125.09,125.02,7.2012]
[1766432200027,54.0,125.08,125.01,94.5]
[1766432200236,0.05474114,125.07,125.04,0.05598041]
[1766432202041,8.73474114,125.07,125.01,101.7017]
[1766432202331,8.73474114,125.07,125.01,101.6817]
[1766432203037,8.73474114,125.07,125.03,0.05312004]
[1766432203635,54.0,125.06,125.03,0.05312004]
[1766432206436,54.0,125.06,125.03,7.25412004]
[1766432208733,0.05474114,125.07,125.03,7.25412004]
[1766432209435,0.05474114,125.07,125.04,7.2005]
[1766432210138,0.05474114,125.07,125.03,0.05312004]
[1766432210639,31.0,125.06,125.03,0.05312004]
[1766432211743,39.68,125.06,124.96,7.44664439]
[1766432211930,8.68,125.05,124.97,94.48]
[1766432212842,0.05375162,125.02,125.0,0.05930422]
[1766432214943,0.05375162,125.02,125.0,7.26210422]
[1766432215647,0.00375162,125.02,125.01,7.2023]
[1766432215950,31.0,125.06,125.01,101.6823]
[1766432216946,0.0529695,125.05,125.01,101.6823]
[1766432218039,8.68,125.1,125.01,94.48]
[1766432218949,62.0,125.08,125.01,94.48]
[1766432219147,0.05941598,125.06,125.03,0.05511188]
[1766432219655,0.05941598,125.06,125.04,7.2004]
[1766432219851,0.05941598,125.06,124.99,112.0505]
[1766432220046,0.05941598,125.06,125.0,94.48]
[1766432220944,8.73941598,125.06,125.02,0.06054719]
[1766432221144,8.73941598,125.06,124.97,112.069]
[1766432221145,8.68,125.05,124.97,112.069]
[1766432221346,8.68,125.05,124.98,94.48]
[1766432221548,74.51985268,125.08,124.98,206.5404]
[1766432221844,8.68,125.07,124.98,206.5404]
[1766432222041,8.68,125.05,124.99,7.2029]
[1766432222246,0.0603347,125.03,125.01,0.05365582]
[1766432223641,8.7403347,125.03,124.97,7.2045]
[1766432223846,8.68,125.03,124.94,119.55006239]
[1766432224044,8.68,125.03,124.95,94.48]
[1766432224551,8.68,125.03,124.94,7.45826239]
[1766432224753,8.68,125.03,124.92,112.1092]
[1766432224754,0.0566004,125.0,124.97,0.05334535]
[1766432225850,9.5,125.05,124.97,0.05334535]
[1766432226044,9.5,125.05,124.96,112.0802]
[1766432226250,103.96,125.07,124.97,119.52796239]
[1766432226451,9.5,125.06,124.96,119.53846239]
[1766432226651,9.5,125.06,124.97,94.48]
[1766432226652,71.5,125.05,124.97,94.48]
[1766432226851,0.05874022,125.02,125.0,0.05202514]
[1766432231161,103.96,125.07,125.0,0.05202514]
[1766432231359,9.5,125.09,125.01,112.0344]
[1766432231564,9.5,125.11,125.02,112.026]
[1766432231856,9.5,125.11,125.05,7.1995]
[1766432232062,9.5,125.11,125.03,206.4947]
[1766432232360,9.5,125.11,125.06,0.05234344]
[1766432233052,9.5,125.11,125.06,7.25164344]
[1766432233359,0.05831972,125.1,125.06,7.25164344]
[1766432233572,9.5,125.14,125.07,206.4582]
[1766432233959,62.0,125.13,125.07,206.4582]
[1766432234162,11.3029954,125.17,125.09,111.9635]
[1766432234357,9.5,125.17,125.09,111.9635]
[1766432234565,0.00311027,125.14,125.12,0.0556482]
[1766432234760,9.5,125.2,125.12,94.48]
[1766432234961,9.5,125.2,125.12,206.415]
[1766432235162,9.5,125.2,125.13,111.9244]
[1766432235163,62.0,125.19,125.13,111.9244]
[1766432235563,62.0,125.19,125.15,0.06136452]
[1766432236670,0.05570406,125.18,125.15,7.25536452]
[1766432238061,9.5,125.23,125.16,94.46]
[1766432238264,94.44,125.25,125.16,206.3577]
[1766432238459,94.44,125.25,125.18,7.1922]
[1766432238665,9.5,125.26,125.18,119.0749]
[1766432238964,0.05684201,125.23,125.21,0.05562245]
[1766432239467,100.98710807,125.3,125.22,94.44]
[1766432239468,9.5,125.29,125.22,94.44]
[1766432239770,62.0,125.28,125.22,94.44]
[1766432240472,0.05896546,125.26,125.24,0.06100052]
[1766432240968,0.05896546,125.26,125.22,94.44]
[1766432241165,9.55896546,125.26,125.21,94.44]
[1766432241362,9.5,125.26,125.21,94.44]
[1766432241772,0.05254244,125.25,125.22,0.05150454]
[1766432244261,9.55254244,125.25,125.22,0.00150454]
[1766432244771,62.0,125.24,125.22,0.00150454]
[1766432245670,62.0,125.24,125.19,94.4]
[1766432246473,62.0,125.24,125.2,0.05103919]
[1766432247870,9.5,125.28,125.2,0.05103919]
[1766432248071,9.5,125.28,125.19,206.2715]
[1766432248371,9.5,125.28,125.19,94.4]
[1766432248773,9.5,125.28,125.17,111.8888]
[1766432248971,0.05648672,125.24,125.21,0.05753313]
[1766432249173,0.05474644,125.24,125.21,0.05128898]
[1766432249872,0.00474644,125.24,125.21,0.05128898]
[1766432250078,0.00474644,125.24,125.22,7.19]
[1766432250570,0.00474644,125.24,125.22,101.55]
[1766432251366,0.00474644,125.24,125.22,7.19]
[1766432251561,0.00474644,125.24,125.22,101.55]
[1766432254266,8.66,125.29,125.24,7.1886]
[1766432254471,30.56710807,125.33,125.25,94.36]
[1766432254472,8.66,125.32,125.25,94.36]
[1766432254685,8.66,125.33,125.25,94.36]
[1766432255268,62.0,125.31,125.28,0.05323945]
[1766432255475,0.05969335,125.3,125.28,0.05323945]
[1766432261181,8.66,125.33,125.28,7.23963945]
[1766432261770,8.66,125.33,125.28,0.05323945]
[1766432261979,62.05451434,125.32,125.28,0.05323945]
[1766432262183,9.11,125.31,125.28,0.00323945]
[1766432263774,62.05451434,125.32,125.28,0.00323945]
[1766432267691,62.05451434,125.32,125.28,7.18973945]
[1766432267884,38.11321434,125.32,125.28,0.00323945]
[1766432268188,9.11,125.36,125.28,0.00323945]
[1766432268485,9.11,125.36,125.27,94.3]
[1766432268872,9.11,125.36,125.25,111.8174]
[1766432268873,9.11,125.33,125.23,111.8338]
[1766432269078,9.11,125.33,125.26,94.3]
[1766432269273,0.05883034,125.29,125.27,0.05090234]
[1766432269489,0.05114753,125.29,125.27,0.05090234]
[1766432270693,9.16114753,125.29,125.19,111.8731]
[1766432270987,9.11,125.29,125.2,94.3]
[1766432271581,0.05771439,125.26,125.23,7.25049889]
[1766432271777,0.05771439,125.26,125.23,0.06109889]
[1766432272290,0.05771439,125.26,125.23,7.25069889]
[1766432272490,0.05771439,125.26,125.23,0.06109889]
[1766432273587,62.0,125.25,125.18,111.8781]
[1766432273788,71.11,125.25,125.18,111.8781]
[1766432273988,71.11,125.25,125.2,7.1909]
[1766432274586,0.05149199,125.24,125.21,0.05249125]
[1766432278698,0.05149199,125.24,125.21,7.24319125]
[1766432280992,103.39,125.3,125.21,0.05249125]
[1766432281199,103.39,125.3,125.21,111.8561]
[1766432281396,9.11,125.3,125.21,111.8561]
[1766432281597,9.11,125.3,125.2,111.863]
[1766432281805,9.11,125.3,125.21,94.32]
[1766432282102,9.16779001,125.27,125.24,0.00129376]
[1766432285305,0.05779001,125.27,125.24,0.00129376]
[1766432289599,8.87779001,125.27,125.24,0.00129376]
[1766432289799,8.87779001,125.27,125.2,7.1908]
[1766432291009,8.87779001,125.27,125.22,0.05625221]
[1766432292215,0.05779001,125.27,125.22,0.05625221]
[1766432292999,0.05779001,125.27,125.23,7.1893]
[1766432297418,62.0,125.29,125.25,7.1881]
[1766432298110,103.12,125.33,125.24,213.5874632]
[1766432298299,8.82,125.33,125.24,213.5874632]
[1766432298506,0.0579523,125.3,125.28,7.1865]
[1766432298811,8.82,125.35,125.28,94.32]
[1766432299011,62.0,125.34,125.28,94.32]
[1766432299213,8.82,125.37,125.28,206.1117]
[1766432299616,8.87985686,125.34,125.31,0.00266151]
[1766432299815,8.87985686,125.34,125.28,94.3]
[1766432300017,8.82,125.34,125.28,94.3]
[1766432300317,62.0,125.33,125.28,94.3]
[1766432300704,0.0598235,125.32,125.29,0.05836135]
[1766432301011,8.8798235,125.32,125.24,7.4400632]
[1766432301211,8.82,125.32,125.24,7.4400632]
[1766432301415,8.82,125.32,125.25,94.3]
[1766432301916,0.05376816,125.3,125.27,0.05396302]
[1766432305320,8.87376816,125.3,125.27,0.00396302]
[1766432305913,8.82,125.28,125.24,7.1886]
[1766432306519,8.82,125.31,125.24,7.1886]
[1766432306921,0.05351798,125.29,125.26,0.05910167]
[1766432307919,8.87351798,125.29,125.22,94.3]
[1766432308117,8.87351798,125.29,125.21,101.7400632]
[1766432308315,8.82,125.29,125.21,101.7400632]
[1766432308522,8.82,125.31,125.24,7.1889]
[1766432308728,8.82,125.31,125.22,119.2873632]
[1766432309023,0.05914991,125.28,125.25,0.06046185]
[1766432310129,8.82,125.31,125.25,94.36046185]
[1766432311128,0.05910892,125.29,125.25,94.36046185]
[1766432311430,8.25,125.33,125.25,101.80052505]
[1766432311631,8.25,125.33,125.26,111.8114]
[1766432312134,8.25,125.33,125.28,7.1866]
[1766432312428,0.05567982,125.32,125.29,0.05722356]
[1766432312616,8.25,125.31,125.24,14.6285632]
[1766432312819,8.25,125.31,125.24,94.3]
[1766432313519,0.05217278,125.29,125.26,0.06115786]
[1766432316042,62.0,125.28,125.26,0.06115786]
[1766432316443,8.07,125.38,125.27,223.5996]
[1766432316640,8.07,125.38,125.28,94.3]
[1766432316841,8.07,125.38,125.27,94.3]
[1766432317040,8.07,125.37,125.29,7.1861]
[1766432317437,0.05398659,125.34,125.32,0.06115792]
[1766432317639,8.07,125.35,125.29,7.1861]
[1766432318647,0.05818752,125.33,125.31,0.05255033]
[1766432318848,0.05818752,125.33,125.31,0.00255033]
[1766432319449,62.0,125.36,125.31,0.00255033]
[1766432320454,0.06078979,125.35,125.31,0.00255033]
[1766432321740,8.13078979,125.35,125.31,0.00255033]
[1766432324361,0.06078979,125.35,125.31,0.00255033]
[1766432324858,0.06078979,125.35,125.31,7.18745033]
[1766432327261,0.06078979,125.35,125.32,7.1844]
[1766432327455,0.06078979,125.35,125.31,0.00255033]
[1766432327861,0.06078979,125.35,125.31,7.18705033]
[1766432328063,8.13078979,125.35,125.31,0.00255033]
[1766432331163,0.06078979,125.35,125.31,0.00255033]
[1766432331864,0.06078979,125.35,125.27,7.43215558]
[1766432331865,8.13078979,125.35,125.27,7.43215558]
[1766432332162,8.07,125.35,125.25,101.69215558]
[1766432332456,8.07,125.35,125.28,7.1867]
[1766432333056,0.0582533,125.33,125.3,0.0589918]
[1766432333364,8.1282533,125.33,125.3,0.0589918]
[1766432335468,0.0582533,125.33,125.3,0.0589918]
[1766432336660,8.1282533,125.33,125.3,0.0589918]
[1766432337064,0.0582533,125.33,125.3,0.0589918]
[1766432344568,0.0582533,125.33,125.3,7.2444918]
[1766432344870,0.0582533,125.33,125.3,0.0589918]
[1766432345562,7.1882533,125.33,125.28,7.43215558]
[1766432345771,7.13,125.32,125.25,0.00215558]
[1766432345971,7.13,125.32,125.24,94.26]
[1766432346166,7.13,125.32,125.25,7.1879]
[1766432346671,0.05588803,125.3,125.27,0.05328051]
[1766432347076,7.13,125.34,125.27,0.05328051]
[1766432347469,7.13,125.33,125.27,7.24028051]
[1766432347657,7.13,125.33,125.27,0.05328051]
[1766432348070,7.13,125.3,125.27,0.00328051]
[1766432348369,7.13,125.3,125.25,7.1879]
[1766432349071,7.13,125.34,125.26,0.05418368]
[1766432349381,7.13,125.35,125.27,94.26]
[1766432349569,7.13,125.34,125.26,94.28]
[1766432350281,0.05425282,125.31,125.29,0.05464577]
[1766432357185,7.18425282,125.31,125.22,111.8448]
[1766432357380,7.13,125.3,125.23,94.28]
[1766432357884,7.13,125.3,125.24,7.1889]
[1766432358278,0.05158704,125.28,125.26,0.05713993]
[1766432360487,0.00158704,125.28,125.26,7.24493993]
[1766432364588,0.00158704,125.28,125.26,0.05713993]
[1766432364892,0.00158704,125.28,125.24,94.28]
[1766432365684,9.57966504,125.28,125.2,9.92886393]
[1766432365886,0.0597424,125.25,125.23,0.05116513]
[1766432367092,0.0597424,125.25,125.23,7.24076513]
[1766432367284,9.578078,125.3,125.23,0.05116513]
[1766432367490,2.448078,125.3,125.23,0.05116513]
[1766432367690,165.838078,125.32,125.23,0.05116513]
[1766432367886,165.838078,125.32,125.22,111.8456]
[1766432368194,0.05168894,125.28,125.26,0.05322325]
[1766432369501,0.00168894,125.28,125.26,0.05322325]
[1766432370593,0.00168894,125.28,125.26,7.24092325]
[1766432375796,0.00168894,125.28,125.26,0.05322325]
[1766432379103,0.00168894,125.28,125.26,94.33322325]
[1766432380306,0.00168894,125.28,125.26,0.05322325]
[1766432380503,0.00168894,125.28,125.26,0.00322325]
[1766432384304,0.00168894,125.28,125.23,94.3]
[1766432385211,0.00168894,125.28,125.24,0.05767908]
[1766432385613,6.92168894,125.28,125.24,0.05767908]
[1766432385810,9.368078,125.27,125.23,94.3]
[1766432386916,9.368078,125.27,125.24,0.05826248]
[1766432388719,6.92,125.26,125.21,94.3]
[1766432388926,6.92,125.26,125.2,7.1908]
[1766432389121,6.92,125.26,125.2,101.4908]
[1766432389825,0.05157902,125.24,125.22,0.06006363]
[1766432392218,0.00157902,125.24,125.22,0.06006363]
[1766432395127,0.00157902,125.24,125.22,7.25006363]
[1766432400731,0.00157902,125.24,125.23,7.1896]
[1766432402129,0.00157902,125.24,125.22,0.06006363]
[1766432404835,23.97,125.35,125.23,206.1501]
[1766432405028,2.448078,125.31,125.23,94.32]
[1766432405334,2.448078,125.31,125.23,101.5091]
[1766432405529,2.448078,125.29,125.23,7.1891]
[1766432405736,0.05733903,125.27,125.25,0.05242151]
[1766432405933,62.0,125.26,125.25,0.00242151]
[1766432406133,62.0,125.26,125.23,7.1891]
[1766432407132,62.0,125.26,125.23,7.23967092]
[1766432409738,62.0,125.26,125.23,0.05057092]
[1766432410035,68.28,125.26,125.23,0.00057092]
[1766432410238,6.28,125.25,125.23,0.00057092]
[1766432410428,6.28,125.25,125.19,111.41619634]
[1766432410833,6.28,125.25,125.19,104.22479634]
[1766432411339,0.05417632,125.23,125.21,0.05186081]
[1766432414644,0.05417632,125.23,125.21,7.24256081]
[1766432417346,0.00417632,125.23,125.21,14.69927915]
[1766432417732,0.00417632,125.23,125.21,7.24256081]
[1766432417940,0.00417632,125.23,125.21,17.14735715]
[1766432418243,62.0,125.26,125.22,94.32]
[1766432419135,0.0576872,125.25,125.23,7.1895]
[1766432421940,6.28,125.29,125.23,7.1895]
[1766432423047,0.05942083,125.27,125.25,0.06014873]
[1766432425048,62.0,125.26,125.25,0.06014873]
[1766432427049,0.05942083,125.27,125.25,0.06014873]
[1766432428053,62.05942083,125.27,125.25,0.06014873]
[1766432429347,6.28,125.32,125.25,7.24854873]
[1766432430352,0.05852189,125.3,125.25,7.24854873]
[1766432430755,6.36852189,125.3,125.25,0.06014873]
[1766432432248,62.0,125.29,125.25,0.06014873]
[1766432432449,68.31,125.29,125.25,0.06014873]
[1766432434557,68.31,125.29,125.25,7.24854873]
[1766432438062,6.43,125.28,125.25,0.00014873]
[1766432441059,6.48852189,125.3,125.25,0.00014873]
[1766432441253,68.43,125.29,125.25,0.00014873]
[1766432441559,6.43,125.28,125.25,0.00014873]
[1766432444462,6.43,125.28,125.21,7.45671834]
[1766432444659,6.43,125.26,125.2,7.45671834]
[1766432444862,10.25573028,125.26,125.2,7.45671834]
[1766432445055,6.43,125.25,125.2,7.45671834]
[1766432445655,6.48703497,125.24,125.21,0.0509204]
[1766432446060,0.05703497,125.24,125.21,0.0509204]
[1766432447063,0.05703497,125.24,125.21,7.2415204]
[1766432447970,0.05703497,125.24,125.21,0.0509204]
[1766432448170,62.0,125.23,125.21,0.0009204]
[1766432454167,62.0,125.23,125.17,94.32]
[1766432454168,6.43,125.21,125.17,0.00386591]
[1766432454368,6.43,125.21,125.12,111.9325]
[1766432454969,6.43,125.21,125.11,206.2579]
[1766432455276,0.05160314,125.17,125.15,0.05224978]
[1766432455572,0.00160314,125.17,125.15,0.05224978]
[1766432456874,0.00160314,125.17,125.15,0.00224978]
[1766432458075,6.43160314,125.17,125.08,111.9683]
[1766432458268,6.43,125.15,125.08,94.34]
[1766432458968,0.06036353,125.13,125.1,0.05290123]
[1766432459674,6.49036353,125.13,125.1,0.00290123]
[1766432460380,0.06036353,125.13,125.1,0.00290123]
[1766432461678,0.00036353,125.13,125.1,0.00290123]
[1766432462477,6.43036353,125.13,125.1,0.00290123]
[1766432462778,6.43036353,125.13,125.06,94.36]
[1766432462979,6.43,125.13,125.06,94.36]
[1766432463280,6.43,125.12,125.06,94.36]
[1766432463879,0.06096473,125.1,125.08,0.05952349]
[1766432465278,62.0,125.09,125.05,7.1997]
[1766432465970,62.0,125.09,125.03,7.2007]
[1766432466474,0.05451279,125.07,125.05,0.05850331]
[1766432468378,0.00451279,125.07,125.05,0.05850331]
[1766432469575,0.00451279,125.07,125.05,7.25830331]
[1766432473476,6.23,125.14,125.07,7.1984]
[1766432474392,6.23,125.14,125.08,7.1979]
[1766432474590,0.05299592,125.12,125.1,0.05363693]
[1766432475483,6.23,125.14,125.1,0.05363693]
[1766432476496,68.28869537,125.13,125.1,0.05363693]
[1766432477280,62.05869537,125.13,125.1,0.05363693]
[1766432483792,68.28869537,125.13,125.1,0.05363693]
[1766432486199,0.05869537,125.13,125.1,7.25063693]
[1766432487088,0.05869537,125.13,125.1,0.05363693]
[1766432487304,62.0,125.12,125.1,0.05363693]
[1766432487589,0.05869537,125.13,125.1,0.05363693]
[1766432490689,62.05869537,125.13,125.1,7.25063693]
[1766432491197,7.48,125.12,125.1,0.00363693]
[1766432491693,7.48,125.12,125.04,94.42]
[1766432491894,7.48,125.1,125.04,94.42]
[1766432492094,7.48,125.1,125.06,7.1994]
[1766432492297,7.48,125.1,125.04,94.42]
[1766432492696,0.05284668,125.08,125.06,0.05993978]
[1766432492996,0.00284668,125.08,125.06,0.05993978]
[1766432493697,0.00284668,125.08,125.07,7.1987]
[1766432499095,62.0,125.13,125.1,7.1971]
[1766432499598,7.48,125.14,125.1,7.1971]
[1766432500001,0.05927149,125.13,125.11,0.05105025]
[1766432500604,62.05927149,125.13,125.11,0.05105025]
[1766432501303,7.63,125.12,125.08,101.6177]
[1766432502208,7.63,125.12,125.09,0.05967705]
[1766432503201,7.63,125.12,125.09,7.25727705]
[1766432506310,62.05927149,125.13,125.1,7.197]
[1766432508313,2.45398474,125.14,125.1,7.197]
[1766432508705,2.45398474,125.14,125.09,0.05967705]
[1766432508706,7.63,125.16,125.09,0.05967705]
[1766432509013,2.45398474,125.17,125.11,111.9454]
[1766432509220,2.45398474,125.19,125.15,7.1941]
[1766432509417,2.45398474,125.21,125.14,94.42]
[1766432509616,0.06103004,125.18,125.16,0.05107328]
[1766432510525,38.06103004,125.18,125.16,7.24457328]
[1766432511423,38.06103004,125.18,125.16,0.05107328]
[1766432512022,0.00103004,125.18,125.16,0.05107328]
[1766432512522,2.45398474,125.17,125.13,7.1948]
[1766432512723,0.00103004,125.18,125.14,94.4]
[1766432512922,2.45398474,125.19,125.14,94.4]
[1766432513430,10.08398474,125.19,125.15,7.1942]
[1766432513727,0.05329947,125.18,125.16,0.06097403]
[1766432513926,0.05527524,125.18,125.16,7.24459912]
[1766432514325,0.05527524,125.18,125.17,94.4]
[1766432516928,0.05527524,125.18,125.16,7.24459912]
[1766432517129,0.05527524,125.18,125.16,101.64459912]
[1766432519929,0.05527524,125.18,125.16,94.45099912]
[1766432520441,7.68527524,125.18,125.1,111.9501]
[1766432520632,7.63,125.18,125.11,94.38]
[1766432520926,2.45398474,125.21,125.16,7.1936]
[1766432521128,2.45398474,125.21,125.16,101.5736]
[1766432521329,10.08398474,125.21,125.16,101.5736]
[1766432521525,0.05498135,125.2,125.17,0.05577273]
[1766432521925,7.68498135,125.2,125.17,0.05577273]
[1766432522130,2.45398474,125.19,125.17,0.05577273]
[1766432523235,7.68498135,125.2,125.17,0.05577273]
[1766432523426,38.0,125.19,125.17,0.05577273]
[1766432525835,10.62398474,125.18,125.13,7.1948]
[1766432526031,2.45398474,125.16,125.09,111.9596]
[1766432526236,10.62398474,125.16,125.07,111.9748]
[1766432526431,10.62398474,125.16,125.1,7.1966]
[1766432526736,0.0598023,125.14,125.12,0.05153658]
[1766432528739,10.68378704,125.14,125.08,7.1977]
[1766432528937,38.0,125.13,125.09,94.38]
[1766432529831,0.06053835,125.12,125.1,0.05768727]
[1766432530929,0.06053835,125.12,125.08,7.1977]
[1766432530930,2.51452309,125.12,125.09,94.38]
[1766432531639,10.68452309,125.12,125.09,94.38]
[1766432531842,10.68452309,125.12,125.09,94.43563112]
[1766432532138,10.68452309,125.12,125.09,0.05563112]
[1766432532726,10.68452309,125.12,125.08,94.38]
[1766432533030,8.17,125.11,125.06,7.1993]
[1766432533228,8.17,125.11,125.07,94.4]
[1766432533737,8.17,125.11,125.08,0.06048139]
[1766432534433,38.0,125.1,125.08,0.06048139]
[1766432536540,8.17,125.11,125.08,0.06048139]
[1766432538343,0.06053835,125.12,125.08,0.06048139]
[1766432539345,38.0,125.11,125.08,0.06048139]
[1766432543147,0.06053835,125.12,125.08,0.06048139]
[1766432544846,0.00053835,125.12,125.08,0.06048139]
[1766432545548,0.00053835,125.12,125.09,7.1976]
[1766432545739,0.00053835,125.12,125.1,94.42]
[1766432548950,0.00053835,125.12,125.1,101.6169]
[1766432550747,9.11,125.19,125.1,94.42]
[1766432550947,9.11,125.19,125.1,206.3723]
[1766432551152,9.11,125.19,125.11,111.9455]
[1766432551743,0.06074583,125.16,125.14,0.05110859]
[1766432551946,0.00074583,125.16,125.15,94.42]
[1766432554657,0.00074583,125.16,125.15,101.6142]
[1766432560756,38.0,125.2,125.16,7.1932]
[1766432561063,8.98,125.19,125.17,76.02]
[1766432561247,8.98,125.19,125.17,65.65503272]
[1766432561450,8.98,125.19,125.12,116.4534]
[1766432561451,8.98,125.19,125.15,94.38]
[1766432561850,0.05617962,125.18,125.16,0.05098449]
[1766432566363,0.05617962,125.18,125.16,0.00098449]
[1766432574072,0.05617962,125.18,125.13,7.1948]
[1766432575071,0.05617962,125.18,125.14,0.05139289]
[1766432579872,0.05617962,125.18,125.14,0.00139289]
[1766432580175,0.05617962,125.18,125.1,94.38]
[1766432580476,3.83543383,125.17,125.07,8.23]
[1766432580676,3.83543383,125.17,125.07,102.61]
[1766432581170,0.05967584,125.13,125.11,0.05673255]
[1766432581765,0.05967584,125.13,125.09,7.1976]
[1766432582667,0.05967584,125.13,125.1,0.05627101]
[1766432590182,0.05967584,125.13,125.1,9.43627101]
[1766432591383,0.05967584,125.13,125.1,0.05627101]
[1766432592286,7.1923,125.19,125.12,16.5758]
[1766432593387,0.05104012,125.17,125.14,0.05816714]
[1766432593581,0.05104012,125.17,125.1,16.5765]